Cogmind - Beta 13 @@@ ROGUE MODE // 2024.07.15 @ 07:51:34 Player: Dosh Result: Destroyed by as-92836 with Assembled Heavy Rifle Performance ------------- Evolutions (0) 0 Regions Visited (2) 400 Robots Destroyed (28) 140 Value Destroyed (639) 639 Prototype IDs (5) 100 Alien Tech Used (0) 0 Bonus (0) 0 TOTAL SCORE: 1279 Bonus ------- None Cogmind --------- Core Integrity 0/250 Matter 300/300 Energy 100/100 System Corruption 0% Temperature Cool (0) Movement Core (350) Ox6 Location -10/Mines Parts ------- > --- POWER (1) -------- (None) > --- PROPULSION (2) --- (None) > --- UTILITY (2) ------ Large Storage Unit > --- WEAPON (2) ------- Light Assault Rifle > --- INVENTORY (15) --- Light Ion Engine Light Ion Engine Light Treads Light Treads Light Treads Light Treads Improved Heat Sink Huge Storage Unit Transport Network Coupler Light Armor Plating Light Armor Plating Light Armor Plating Datajack Mining Claw Peak State ------------ > --- POWER ------------ Light Ion Engine > --- PROPULSION ------- Light Treads Light Treads > --- UTILITY ---------- Large Storage Unit Light Armor Plating > --- WEAPON ----------- Assault Rifle Light Assault Rifle > --- INVENTORY -------- Light Ion Engine Light Treads Light Treads Light Treads Light Treads Light Armor Plating Light Armor Plating Light Armor Plating Light Assault Rifle Mining Claw [Rating: 8] Favorites ----------- Power Ion Engine Engine Ion Engine Propulsion Light Treads Treads Light Treads Utility Large Storage Unit Storage Large Storage Unit Protection Light Armor Plating Weapon Light Assault Rifle Ballistic Gun Light Assault Rifle Build | -11 -10 -10 ------- Run | Yrd Mat Min Slots Evolved . | . . . Power . | . . . Propulsion . | . . . Utility . | . . . Weapon . | . . . Parts Attached 17 | 5 6 6 Power 2 | 1 1 . Engine 2 | 1 1 . Core . | . . . Reactor . | . . . Propulsion 5 | 2 2 1 Treads 5 | 2 2 1 Leg . | . . . Wheel . | . . . Hover . | . . . Flight . | . . . Utility 5 | 1 2 2 Device . | . . . Storage 2 | 1 1 . Processor . | . . . Hackware . | . . . Protection 3 | . 1 2 Artifact . | . . . Weapon 5 | 1 1 3 Energy Gun . | . . . Energy Cannon . | . . . Ballistic Gun 5 | 1 1 3 Ballistic Cannon . | . . . Launcher . | . . . Special Weapon . | . . . Impact Weapon . | . . . Slashing Weapon . | . . . Piercing Weapon . | . . . Special Melee Weapon . | . . . Unidentified Prototypes . | . . . Parts Lost 7 | . . 7 Power 1 | . . 1 Propulsion 3 | . . 3 Utility 1 | . . 1 Weapon 2 | . . 2 Highest Loss Streak 6 | . . 6 To Critical Strikes . | . . . Average Slot Usage (%) 95 | . 95 98 Engine 13 | . 14 13 Treads 27 | . 28 27 Storage 14 | . 14 14 Protection 10 | . 9 13 Ballistic Gun 27 | . 27 27 Naked Turns . | . . . Heaviest Build 31 | 10 31 31 Greatest Support 40 | 40 40 40 Greatest Overweight (x) 1 | . . 1 Average Overweight (x) . | . . . Largest Inventory Capacity 15 | 8 15 15 Average Capacity 13 | 7 13 15 Most Carried 15 | 1 14 15 Average Carried 10 | . 9 14 Final Capacity 15 | 8 15 15 Final Carried 14 | 1 14 14 Class Distribution -------------------- 94% | Mutant 5% | Scavenger-Mutant Dominant Class ---------------- Mutant | -10/Materials Mutant | -10/Mines Resources | -11 -10 -10 ----------- Run | Yrd Mat Min Matter Collected 625 | 219 298 108 Remotely . | . . . Salvage Created 880 | . 642 238 Parts 67 | . 50 17 Haulers Intercepted 2 | . 2 . Recyclers Shooed 1 | . 1 . Parts Field Recycled . | . . . Retrieved Matter . | . . . Parts Self-Destructed . | . . . Prevented . | . . . Kills | -11 -10 -10 ------- Run | Yrd Mat Min Combat Hostiles Destroyed 21 | . 15 6 Guns 21 | . 15 6 Classes Destroyed 7 | . 6 1 Worker 1 | . 1 . Hauler 2 | . 2 . Operator 1 | . 1 . Watcher 3 | . 3 . Swarmer 8 | . 6 2 Grunt 11 | . 9 2 Sentry 2 | . . 2 Best Kill Streak 5 | . 5 2 Combat Bots Only 5 | . 5 2 Max Kills in Single Turn 1 | . 1 1 Gunslinging . | . . . Exploded . | . . . Melee . | . . . Uniques/NPCs Destroyed . | . . . Combat | -11 -10 -10 -------- Run | Yrd Mat Min Hostile Shots Fired 118 | . 61 57 Missed 21 | . 12 9 Damage Taken 1490 | . 482 1008 Core 261 | . 91 170 Absorbed by Shields . | . . . Core Remaining (%) 100 | 100 . . Volleys Fired 79 | . 57 22 Largest 2 | . 2 2 Hottest 40 | . 40 40 Shots Fired 156 | . 112 44 Gun 156 | . 112 44 Cannon . | . . . Launcher . | . . . Special . | . . . Kinetic 156 | . 112 44 Thermal . | . . . Explosive . | . . . Electromagnetic . | . . . Robot Hit Streak 21 | . 11 21 Robot Miss Streak 3 | . 3 1 Penetration Max . | . . . Secondary Targets 4 | . 4 . Max Gunslinging Chain 1 | . 1 . Shots Hit Robots 111 | . 74 37 Core Hits 54 | . 40 14 Critical Kills 1 | . 1 . Critical Parts Destroyed . | . . . Critical Strikes 1 | . 1 . Destroy 1 | . 1 . Melee Attacks . | . . . Impact . | . . . Slashing . | . . . Piercing . | . . . Sneak Attacks . | . . . Combat Hostiles . | . . . Follow-up Attacks . | . . . Damage Inflicted 1223 | . 862 361 Guns 1187 | . 831 356 Cannons . | . . . Explosions . | . . . Melee . | . . . Ramming 36 | . 31 5 Kinetic 1187 | . 831 356 Thermal . | . . . Explosive . | . . . Electromagnetic . | . . . Impact . | . . . Slashing . | . . . Piercing . | . . . Highest Corruption . | . . . Average Corruption . | . . . Corruption Purged . | . . . Corruption Blocked . | . . . Overload Shots . | . . . Overflow Damage . | . . . Projectiles . | . . . Explosions . | . . . Melee . | . . . Knockbacks . | . . . Impact . | . . . Kinetic . | . . . Secondary . | . . . Self-Inflicted Damage . | . . . Shots . | . . . Rammed 10 | . 9 1 Targets Rammed 10 | . 9 1 Kicked . | . . . Crushed . | . . . Highest Temperature 30 | . 25 30 Average Temperature 8 | . 7 10 Received Heat Transfer 267 | . 168 99 Siege Activations . | . . . Robots Corrupted . | . . . Combat Hostiles . | . . . Parts Fried . | . . . Impact Corruptions . | . . . Robots Melted . | . . . Combat Hostiles . | . . . Parts Melted . | . . . Heat Transferred . | . . . Parts Sabotaged . | . . . Parts Stolen . | . . . Parts Stripped . | . . . Power Chain Reactions . | . . . Alert | -11 -10 -10 ------- Run | Yrd Mat Min Peak Influence 235 | . 235 189 Initial 29 | . . 29 Average 117 | . 123 112 Maximum Alert Level 1 | . 1 . Low Security (%) 98 | 100 97 100 Level 1 1 | . 2 . Level 2 . | . . . Level 3 . | . . . Level 4 . | . . . Level 5 . | . . . High Security . | . . . Max Security . | . . . Squads Dispatched 5 | . 5 . Investigation 4 | . 4 . Extermination . | . . . Reinforcement 1 | . 1 . Assault . | . . . Garrison . | . . . Intercept . | . . . Searches Triggered . | . . . Construction Impeded . | . . . Haulers Reinforced . | . . . Active Scanning Responses . | . . . Cargo Convoy Interrupts . | . . . Stealth | -11 -10 -10 --------- Run | Yrd Mat Min Distress Signals 3 | . 3 . Communications Jammed . | . . . Distress Signals . | . . . Times Spotted 47 | . 28 19 Peak Tracking Total 10 | . 6 10 Tactical Retreats 3 | . 1 2 Traps | -11 -10 -10 ------- Run | Yrd Mat Min Traps Triggered 2 | . 2 . Indirectly . | . . . Trap Hack Attempts . | . . . Triggered . | . . . Disarmed . | . . . Reprogrammed . | . . . Reused . | . . . Traps Extracted . | . . . Installed . | . . . Triggered . | . . . Machines | -11 -10 -10 ---------- Run | Yrd Mat Min Machines Disabled . | . . . Max in Single Turn . | . . . Machines Repaired . | . . . Machines Dismantled . | . . . Machines Sabotaged . | . . . Overloaded Fab Kills . | . . . Hacking | -11 -10 -10 --------- Run | Yrd Mat Min Machines Accessed 8 | . 8 . Terminals 6 | . 6 . Fabricators . | . . . Repair Stations . | . . . Recycling Units 2 | . 2 . Scanalyzers . | . . . Garrison Access . | . . . Total Hacks 15 | . 15 . Successful 10 | . 10 . Failed 5 | . 5 . Catastrophic 1 | . 1 . Database Lockouts . | . . . Manual 9 | . 9 . Terminals 13 | . 13 . Fabricators . | . . . Repair Stations . | . . . Recycling Units 2 | . 2 . Scanalyzers . | . . . Garrison Access . | . . . Terminal Hacks 7 | . 7 . Robot Schematic 1 | . 1 . Robot Analysis 2 | . 2 . Prototype ID Bank 2 | . 2 . Emergency Access Points 1 | . 1 . Locate Traps 1 | . 1 . Fabricator Hacks . | . . . Repair Station Hacks . | . . . Recycling Unit Hacks . | . . . Scanalyzer . | . . . Garrison Access Hacks . | . . . Unauthorized Hacks 3 | . 3 . Terminals 1 | . 1 . Botnet 1 | . 1 . Fabricators . | . . . Repair Stations . | . . . Recycling Units 2 | . 2 . Tunnel 2 | . 2 . Scanalyzers . | . . . Garrison Access . | . . . Data Cores Recovered . | . . . Used . | . . . Hacking Detections 5 | . 5 . Full Trace Events . | . . . Feedback Events . | . . . Feedback Blocked . | . . . Robot Schematics Acquired 1 | . 1 . Robots Built . | . . . Authchips . | . . . Time . | . . . Total Robot Build Rating . | . . . Part Schematics Acquired . | . . . Parts Built . | . . . Authchips . | . . . Time . | . . . Total Part Build Rating . | . . . Parts Repaired . | . . . Time . | . . . Parts Recycled . | . . . Recycled Matter . | . . . Retrieved Matter . | . . . Retrieved Components . | . . . Parts Scanalyzed . | . . . Part Schematics Acquired . | . . . Parts Damaged . | . . . Bothacking | -11 -10 -10 ------------ Run | Yrd Mat Min Used RIF Installer . | . . . Robots Hacked . | . . . Non-combat . | . . . Combat . | . . . Robot Hacks Applied . | . . . Relay Couplers Released . | . . . Fabnet Peak Effective % . | . . . Robots Rewired . | . . . Allies Hacked . | . . . Hacks Repelled . | . . . Allies | -11 -10 -10 -------- Run | Yrd Mat Min Total Allies . | . . . Largest Group . | . . . Highest-Rated Group . | . . . Highest-Rated Ally . | . . . Total Orders . | . . . Ally Attacks . | . . . Total Damage . | . . . Kills . | . . . Allies Corrupted . | . . . Allies Melted . | . . . Intel | -11 -10 -10 ------- Run | Yrd Mat Min Robot Analysis Total 2 | . 2 . Derelict Logs Recovered . | . . . Drone Launches . | . . . Drone Recoveries . | . . . Exploration | -11 -10 -10 ------------- Run | Yrd Mat Min Turns Passed 2636 | 92 2165 379 Spaces Moved 1250 | 54 1011 185 Core 2 | 2 . . Treads 1248 | 52 1011 185 Legs . | . . . Wheels . | . . . Hover . | . . . Flight . | . . . Fastest Speed 50 | 50 160 160 Average Speed 160 | 155 160 162 Slowest Speed 240 | 160 160 240 Overloaded Moves . | . . . Propulsion Burnouts . | . . . Robots Hopped . | . . . Cave-ins Triggered . | . . . Exploration Rate (%) 52 | 4 98 54 Regions Visited 2 Branch Regions 1 Pre-discovered Areas 3 | . 2 1 Known Exits Taken . | . . . Unknown Exits Taken 2 | 1 1 . Scrap Searched . | . . . Spaces Dug . | . . . Terrain Destroyed . | . . . Melee . | . . . Projectile . | . . . AOE . | . . . Terrain Rammed . | . . . Walls Destroyed . | . . . Machines Disabled . | . . . Actions | -11 -10 -10 --------- Run | Yrd Mat Min Total 1736 | 59 1450 227 Wait 364 | . 356 8 Move 1248 | 53 1010 185 Hop . | . . . Pick Up 12 | 1 10 1 Fast Attach 9 | 5 3 1 Attach 1 | . . 1 Detach 1 | . 1 . Swap 7 | . 3 4 Drop 5 | . 1 4 Fire 79 | . 57 22 Melee . | . . . Ram . | . . . Kick . | . . . Crush 10 | . 9 1 Escape Stasis . | . . . Rewire . | . . . Trap . | . . . Miscellaneous . | . . . Route ------- -11/Scrapyard -10/Materials (discovered 4 exits: [*Mat x3] / [*Min]) -10/Mines (discovered 1 exit: [*Mat]) History --------- Turn | Location | Event 12 | -11/Scrapyard | Discovered new exit (range 16) 93 | -11/Scrapyard | Entered Materials 300 | -10/Materials | Discovered new exit (range 12) 304 | -10/Materials | Build established: Mutant 627 | -10/Materials | Discovered new exit (range 16) 827 | -10/Materials | Discovered new exit (range 11) 1301 | -10/Materials | Discovered new exit (range 8) 2258 | -10/Materials | Entered Mines 2514 | -10/Mines | Core integrity fell below 50% 2567 | -10/Mines | Discovered new exit (range 5) 2605 | -10/Mines | Assembled infested the area 2630 | -10/Mines | Core integrity fell below 20% 2637 | -10/Mines | Destroyed by as-92836 with Assembled Heavy Rifle Last Messages --------------- 02614_ D-53 Grenadier unfolds itself. 02616_ Lgt. Assault Rifle destroyed. 02623_ Lgt. Armor Plating destroyed. 02623_ Lgt. Assault Rifle destroyed. 02624_ The unstable cave ceiling collapses. 02625_ Ion Engine destroyed. 02625_ as-97557 destroyed. 02625_ as-88692 destroyed. 02626_ The unstable cave ceiling collapses. 02627_ as-90854 destroyed. 02627_ Lgt. Treads destroyed. 02627_ as-53732 destroyed. 02630_ The unstable cave ceiling collapses. 02632_ as-10304 destroyed. 02632_ as-96956 destroyed. 02632_ as-42950 destroyed. 02632_ Plasma Injector explodes. 02634_ The unstable cave ceiling collapses. 02635_ Lgt. Treads destroyed. 02635_ as-48210 destroyed. Map ----- +----------------------------------------------------+ | # ## #???# ##????? ??????????????????? | | ### #### !#???# #????? #?#####????????????? | | ??## #??#%##???# #?????# ### ##???????????? | | ???# #??#!###### #??????# ## #???????????? | | ???##=*##??# ##?????# ## ## ###??????? | | ????##=#???# ###### ####### # ???????? | | ?????# ###?# #????# #????????????? | | ?????#[*[#?# #????# < " %#?????????????? | | ####### ### #????## ####% ##??####???????? | | # #?????## #?# #?# ##??????? | | # ##### #####??????### #? ## #??????? | | ??????# #??????????#?## ##? #??????? | | ??????# #????????? ##?####??# ##??????? | | ??????# ##??????? #??????? #???????? | | ??????# ###???? ######### ##???????? | | ??????# #### $ #????????? | | ??????# #????????? | | ??????## ###### #d ! ##????????? | | ???????# ### #???## # d u ##?????????? | | ???????# ##???? #???# # a ####??????????? | | ???????## ##??????? ???# # #?????????????? | | ????????# #????????????# # #?????????????? | | ????????# #???????????## ##?????????????? | | ????????# ####????????# #??????????????? | | ????????# # ???????# # #??????????????? | | ????????# # #???????# @ = ##??????????????? | | #???????# # ##?# %% #??????????? | | ##??????# ##### ### [ a #??????????? | | #?????## ##???#?### ###a#??????????? | | #????## ## ##??# a #??????????????? | | #???## #??# #; % #?????????????? | | ##???# #??######[ #????????????? | | #????# ##????????%* #????????????? | | #????## ##???????? ##????????????? | | ###??## #???????? #?????????????? | | #### #???????# #?????????????? | | ???????# ##?????????????? | | #### ?????????##??????????????? | | ##???# #?????????????????????????? | | ## #?????? ??????????????????????????? | | #### ##??????????????????????????????????? | | #??#### ##???????????????????????????????????? | | ##?????# ##????????????????????????????????????? | | ##??????# #?????????????????????????????????????? | | #######?# #?????????????????????????????????????? | | =[ % #?# #?????????????????????????????????????? | | ##### ### #?????????????????????????????????????? | | ##??# #?????????????????????????????????????? | | #??##### ###???????????????????????????????????? | | #??????# ##??????????????????????????????????? | +----------------------------------------------------+ Best States ------------- Heat Dissipation 25 Energy Generation 10 Energy Capacity 250 Matter Stores 300 Matter Capacity 300 Sight Range 16 Terrain Scan Density 10 Armor Coverage 150 Evasion (%) 40 Recoil Reduction 2 Item Schematics ----------------- None Robot Schematics ------------------ M-13 Machinist | -10/Materials | Hacked Fabricated ------------ Nothing Alien Tech Used ----------------- None Achievements -------------- None Challenges ------------ None Game ------ Seed PotentialCombatPick Manual? 0 Play Time 00:08:55 Cumulative 435.7 hours Start 2024.07.15 @ 07:43:43 End 2024.07.15 @ 07:51:34 Sessions 1 Manual Loads 0 Difficulty Rogue Special Mode None Game No. 265 Rogue 265 Adventurer 0 Explorer 0 Win Type - Total 28 Types 20/2/3/1/1/0/0/1/0 Lore% 88 Gallery% 88 Achievement% 84 Wizard Run 0 Options --------- Layout 0 ASCII 0 Keyboard 1 Movement Numpad Keybinds 0 Fullscreen 2 Font 18/SmallcapsGlow Map View 76x50 Zoom Use 0% Tactical HUD 1 Map Filters NONE Filters NONE Steam 1 RUN: 2296a562-8ea3-4fad-ae7e-c3d6922a0c6f